fUSD/lending_fUSD_20260620
["ID","MTS","AMOUNT","RATE_DAILY","PERIOD"]
[425820669,1781935847000,-1108.0,0.00032932,30]
[425820675,1781935847000,-554.14,0.00032966,4]
[425820678,1781935847000,-151.0,0.00032968,2]
[425820676,1781935847000,-163.74489571,0.00032967,2]
[425820677,1781935847000,-500.0,0.00032967,2]
[425820672,1781935847000,-165.0,0.00032934,30]
[425820671,1781935847000,-192.0,0.00032934,30]
[425820674,1781935847000,-1956.04,0.00032966,4]
[425820670,1781935847000,-223.0,0.00032932,30]
[425820679,1781935847000,-985.55534566,0.0003297,2]
[425820629,1781935847000,-18713.13859123,0.00032689,2]
[425820663,1781935847000,-250.0,0.00032932,27]
[425820655,1781935847000,-400.0,0.00032892,2]
[425820673,1781935847000,-194.0,0.00032937,30]
[425820651,1781935847000,-151.0,0.00032877,7]
[425820646,1781935847000,-500.0,0.00032876,120]
[425820630,1781935847000,-1000.0,0.0003276,2]
[425820631,1781935847000,-145711.3449405,0.00032761,2]
[425820628,1781935847000,-3000.0,0.0003267,3]
[425820633,1781935847000,-29137.3378705,0.000328,2]
[425820634,1781935847000,-792.295692,0.000328,2]
[425820632,1781935847000,-170.7112702,0.000328,2]
[425820635,1781935847000,-793.37,0.00032808,7]
[425820638,1781935847000,-384.78176723,0.0003286,2]
[425820639,1781935847000,-319.16129845,0.0003286,2]
[425820643,1781935847000,-500.0,0.00032876,120]
[425820640,1781935847000,-151.0,0.0003286,2]
[425820627,1781935847000,-121025.19656369,0.0003267,2]
[425820637,1781935847000,-201.93286098,0.0003286,2]
[425820650,1781935847000,-151.0,0.00032877,7]
[425820636,1781935847000,-502.0,0.0003283,8]
[425820652,1781935847000,-151.947279,0.00032877,120]
[425820653,1781935847000,-150.0,0.00032877,120]
[425820648,1781935847000,-500.0,0.00032876,120]
[425820647,1781935847000,-500.0,0.00032876,120]
[425820649,1781935847000,-1000.0,0.00032877,10]
[425820645,1781935847000,-500.0,0.00032876,120]
[425820644,1781935847000,-500.0,0.00032876,120]
[425820641,1781935847000,-151.0,0.0003286,2]
[425820642,1781935847000,-542.68886294,0.00032873,2]
[425820703,1781935848000,-225.0,0.00032986,2]
[425820696,1781935848000,-225.0,0.00032986,2]
[425820702,1781935848000,-225.0,0.00032986,2]
[425820699,1781935848000,-225.0,0.00032986,2]
[425820698,1781935848000,-225.0,0.00032986,2]
[425820701,1781935848000,-225.0,0.00032986,2]
[425820706,1781935848000,-225.0,0.00032986,2]
[425820707,1781935848000,-225.0,0.00032986,2]
[425820704,1781935848000,-225.0,0.00032986,2]
[425820705,1781935848000,-225.0,0.00032986,2]
[425820709,1781935848000,-225.0,0.00032986,2]
[425820697,1781935848000,-225.0,0.00032986,2]
[425820712,1781935848000,-353.0,0.00032986,2]
[425820708,1781935848000,-225.0,0.00032986,2]
[425820700,1781935848000,-225.0,0.00032986,2]
[425820691,1781935848000,-225.0,0.00032986,2]
[425820695,1781935848000,-225.0,0.00032986,2]
[425820713,1781935848000,-500.0,0.00032999,120]
[425820681,1781935848000,-225.0,0.00032986,2]
[425820692,1781935848000,-225.0,0.00032986,2]
[425820680,1781935848000,-225.0,0.00032986,2]
[425820682,1781935848000,-225.0,0.00032986,2]
[425820683,1781935848000,-225.0,0.00032986,2]
[425820693,1781935848000,-225.0,0.00032986,2]
[425820690,1781935848000,-225.0,0.00032986,2]
[425820689,1781935848000,-225.0,0.00032986,2]
[425820684,1781935848000,-225.0,0.00032986,2]
[425820687,1781935848000,-225.0,0.00032986,2]
[425820685,1781935848000,-225.0,0.00032986,2]
[425820686,1781935848000,-225.0,0.00032986,2]
[425820694,1781935848000,-225.0,0.00032986,2]
[425820688,1781935848000,-225.0,0.00032986,2]
[425820710,1781935848000,-225.0,0.00032986,2]
[425820734,1781935848000,-15000.0,0.00033,2]
[425820714,1781935848000,-500.0,0.00032999,120]
[425820746,1781935848000,-1522.8798334,0.00033,2]
[425820744,1781935848000,-2800.64216366,0.00029537,2]
[425820745,1781935848000,-222.98628302,0.00033,2]
[425820743,1781935848000,-861.99183634,0.00029537,2]
[425820742,1781935848000,-1198.01211178,0.00033,2]
[425820739,1781935848000,-22499.98,0.00033,2]
[425820738,1781935848000,-15000.0,0.00033,2]
[425820740,1781935848000,-8928.53,0.00033,2]
[425820741,1781935848000,-4868.67,0.00033,2]
[425820735,1781935848000,-22499.93,0.00033,2]
[425820736,1781935848000,-12499.96,0.00033,2]
[425820711,1781935848000,-225.0,0.00032986,2]
[425820732,1781935848000,-12499.98,0.00033,2]
[425820728,1781935848000,-15000.0,0.00033,2]
[425820730,1781935848000,-19048.58,0.00033,2]
[425820733,1781935848000,-18268.34,0.00033,2]
[425820731,1781935848000,-22499.92,0.00033,2]
[425820718,1781935848000,-500.0,0.00032999,120]
[425820715,1781935848000,-500.0,0.00032999,120]
[425820719,1781935848000,-793.37,0.00032999,7]
[425820729,1781935848000,-15000.0,0.00033,2]
[425820723,1781935848000,-793.37,0.00032999,7]
[425820717,1781935848000,-500.0,0.00032999,120]
[425820721,1781935848000,-793.37,0.00032999,7]
[425820716,1781935848000,-500.0,0.00032999,120]
[425820722,1781935848000,-793.37,0.00032999,7]
[425820725,1781935848000,-1000.0,0.00032999,120]
[425820737,1781935848000,-9999.99,0.00033,2]
[425820727,1781935848000,-1273.43,0.00033,2]
[425820724,1781935848000,-793.37,0.00032999,7]
[425820720,1781935848000,-793.37,0.00032999,7]
[425820726,1781935848000,-6537.79,0.00033,2]
[425820747,1781935849000,-3647.0,0.00032537,2]
[425820748,1781935849000,-2719.6,0.00033,2]
[425820753,1781935850000,-622.0,0.00027137,2]
[425820750,1781935850000,-168.81,0.00016712,2]
[425820759,1781935850000,-156.56,0.00028641,30]
[425820758,1781935850000,-111.49184307,0.0002863,2]
[425820749,1781935850000,-1270.88374,0.000146,2]
[425820751,1781935850000,-194.0,0.0002,2]
[425820752,1781935850000,-194.0,0.00021,2]
[425820755,1781935850000,-1024.90262077,0.00028291,2]
[425820765,1781935850000,-214.88,0.00029132,30]
[425820756,1781935850000,-214.88,0.0002863,30]
[425820754,1781935850000,-138.53148287,0.00028291,2]
[425820764,1781935850000,-157.59,0.00028696,7]
[425820761,1781935850000,-214.88,0.00028964,2]
[425820762,1781935850000,-156.56,0.00029139,7]
[425820760,1781935850000,-214.88,0.00028797,7]
[425820763,1781935850000,-1696.84197168,0.00033,2]
[425820766,1781935850000,-719.08639,0.00033,2]
[425820757,1781935850000,-46.09815693,0.0002863,2]
[425820767,1781935975000,-222.98628302,0.000139,2]
[425820768,1781935990000,-222.98628302,0.000139,2]
[425820769,1781936004000,-54.02743396,0.000139,2]
[425820770,1781936057000,-600.05,0.00013413,2]
[425820773,1781936072000,159.4,0.00028616,120]
[425820772,1781936072000,159.4,0.00026232,120]
[425820774,1781936110000,-150.0,0.00013481,2]
[425820775,1781936164000,-197.53558247,0.00013898,2]
[425820777,1781936217000,-572.64693753,0.00013996,2]
[425820778,1781936271000,-500.0,0.00013996,2]
[425820779,1781936326000,-191.9760525,0.00013896,2]
[425820780,1781936378000,-652.68681827,0.00013195,2]
[425820781,1781936594000,-546.13677937,0.00013874,2]
[425820782,1781936647000,-191.9760525,0.00013794,2]
[425820783,1781936701000,-500.0,0.00013893,2]
[425820784,1781936754000,-320.70373613,0.00013793,2]
[425820785,1781936808000,-176.98730361,0.00013892,2]
[425820786,1781936861000,-150.0,0.00013891,2]
[425820787,1781936915000,-238.34323259,0.00013891,2]
[425820789,1781936969000,-191.9760525,0.0001379,2]
[425820790,1781937007000,1005.94,0.00030137,120]
[425820791,1781937022000,-861.99183634,0.00013793,2]
[425820794,1781937022000,40.455469,9.989e-05,2]
[425820793,1781937022000,204.0,9.989e-05,2]
[425820792,1781937022000,204.0,9.989e-05,2]
[425820795,1781937023000,163.544531,9.989e-05,2]
[425820828,1781937037000,-550.36887339,0.0001389,2]
[425820824,1781937037000,-550.36887339,0.0001389,2]
[425820827,1781937037000,-550.36887339,0.0001389,2]
[425820825,1781937037000,-550.36887339,0.0001389,2]
[425820826,1781937037000,-550.36887339,0.0001389,2]
[425820823,1781937037000,-550.36887339,0.0001389,2]
[425820820,1781937037000,-550.36887339,0.0001389,2]
[425820821,1781937037000,-550.36887339,0.0001389,2]
[425820818,1781937037000,-550.36887339,0.0001389,2]
[425820822,1781937037000,-550.36887339,0.0001389,2]
[425820819,1781937037000,-550.36887339,0.0001389,2]
[425820817,1781937037000,-550.36887339,0.0001389,2]
[425820815,1781937037000,-9.52093197,0.0001389,2]
[425820814,1781937037000,-235.60936655,0.0001389,2]
[425820813,1781937037000,-99.15802467,0.0001389,2]
[425820812,1781937037000,-400.84197533,0.0001389,2]
[425820810,1781937037000,-513.23544355,0.0001389,2]
[425820811,1781937037000,-500.86271901,0.0001389,2]
[425820809,1781937037000,-555.92815494,0.0001389,2]
[425820808,1781937037000,-150.0,0.00013889,2]
[425820806,1781937037000,-6284.02452732,0.00013793,2]
[425820807,1781937037000,-300.0,0.00013889,2]
[425820805,1781937037000,-861.99183634,0.00013793,2]
[425820816,1781937037000,-540.84794142,0.0001389,2]
[425820829,1781937037000,-550.36887339,0.0001389,2]
[425820832,1781937037000,-550.36887339,0.0001389,2]
[425820830,1781937037000,-550.36887339,0.0001389,2]
[425820831,1781937037000,-550.36887339,0.0001389,2]
[425820865,1781937037000,-550.36887339,0.0001389,2]
[425820862,1781937037000,-550.36887339,0.0001389,2]
[425820855,1781937037000,-550.36887339,0.0001389,2]
[425820857,1781937037000,-550.36887339,0.0001389,2]
[425820859,1781937037000,-550.36887339,0.0001389,2]
[425820850,1781937037000,-550.36887339,0.0001389,2]
[425820852,1781937037000,-550.36887339,0.0001389,2]
[425820853,1781937037000,-550.36887339,0.0001389,2]
[425820851,1781937037000,-550.36887339,0.0001389,2]
[425820844,1781937037000,-550.36887339,0.0001389,2]
[425820843,1781937037000,-550.36887339,0.0001389,2]
[425820854,1781937037000,-550.36887339,0.0001389,2]
[425820845,1781937037000,-550.36887339,0.0001389,2]
[425820849,1781937037000,-550.36887339,0.0001389,2]
[425820833,1781937037000,-550.36887339,0.0001389,2]
[425820836,1781937037000,-550.36887339,0.0001389,2]
[425820837,1781937037000,-550.36887339,0.0001389,2]
[425820840,1781937037000,-550.36887339,0.0001389,2]
[425820835,1781937037000,-550.36887339,0.0001389,2]
[425820838,1781937037000,-550.36887339,0.0001389,2]
[425820842,1781937037000,-550.36887339,0.0001389,2]
[425820841,1781937037000,-550.36887339,0.0001389,2]
[425820847,1781937037000,-550.36887339,0.0001389,2]
[425820839,1781937037000,-550.36887339,0.0001389,2]
[425820882,1781937038000,-545.36551999,0.0001389,2]
[425820883,1781937038000,-545.36551999,0.0001389,2]
[425820885,1781937038000,-545.36551999,0.0001389,2]
[425820884,1781937038000,-545.36551999,0.0001389,2]
[425820890,1781937038000,-545.36551999,0.0001389,2]
[425820895,1781937038000,-545.36551999,0.0001389,2]
[425820891,1781937038000,-545.36551999,0.0001389,2]
[425820887,1781937038000,-545.36551999,0.0001389,2]
[425820886,1781937038000,-545.36551999,0.0001389,2]
[425820888,1781937038000,-545.36551999,0.0001389,2]
[425820892,1781937038000,-545.36551999,0.0001389,2]
[425820889,1781937038000,-545.36551999,0.0001389,2]
[425820880,1781937038000,-545.36551999,0.0001389,2]
[425820867,1781937038000,-550.36887339,0.0001389,2]
[425820879,1781937038000,-545.36551999,0.0001389,2]
[425820876,1781937038000,-545.36551999,0.0001389,2]
[425820878,1781937038000,-545.36551999,0.0001389,2]
[425820877,1781937038000,-545.36551999,0.0001389,2]
[425820875,1781937038000,-545.36551999,0.0001389,2]
[425820872,1781937038000,-545.36551999,0.0001389,2]
[425820874,1781937038000,-545.36551999,0.0001389,2]
[425820873,1781937038000,-545.36551999,0.0001389,2]
[425820871,1781937038000,-550.36887339,0.0001389,2]
[425820870,1781937038000,-550.36887339,0.0001389,2]
[425820869,1781937038000,-550.36887339,0.0001389,2]
[425820868,1781937038000,-550.36887339,0.0001389,2]
[425820881,1781937038000,-545.36551999,0.0001389,2]
[425820896,1781937038000,-545.36551999,0.0001389,2]
[425820905,1781937038000,-545.36551999,0.0001389,2]
[425820893,1781937038000,-545.36551999,0.0001389,2]
[425820894,1781937038000,-545.36551999,0.0001389,2]
[425820924,1781937038000,-200.0,0.00014682,2]
[425820922,1781937038000,-500.0,0.00014164,2]
[425820925,1781937038000,-8468.01668526,0.00014682,2]
[425820923,1781937038000,-254.14945952,0.00014567,7]
[425820919,1781937038000,-192.19764429,0.0001389,2]
[425820917,1781937038000,-500.0,0.0001389,2]
[425820915,1781937038000,-545.36551999,0.0001389,2]
[425820920,1781937038000,-446.83918312,0.000139,2]
[425820914,1781937038000,-545.36551999,0.0001389,2]
[425820912,1781937038000,-545.36551999,0.0001389,2]
[425820910,1781937038000,-545.36551999,0.0001389,2]
[425820908,1781937038000,-545.36551999,0.0001389,2]
[425820921,1781937038000,-271.0,0.00014038,2]
[425820911,1781937038000,-545.36551999,0.0001389,2]
[425820913,1781937038000,-545.36551999,0.0001389,2]
[425820897,1781937038000,-545.36551999,0.0001389,2]
[425820902,1781937038000,-545.36551999,0.0001389,2]
[425820899,1781937038000,-545.36551999,0.0001389,2]
[425820900,1781937038000,-545.36551999,0.0001389,2]
[425820901,1781937038000,-545.36551999,0.0001389,2]
[425820903,1781937038000,-545.36551999,0.0001389,2]
[425820906,1781937038000,-545.36551999,0.0001389,2]
[425820904,1781937038000,-545.36551999,0.0001389,2]
[425820907,1781937038000,-545.36551999,0.0001389,2]
[425820909,1781937038000,-545.36551999,0.0001389,2]
[425820898,1781937038000,-545.36551999,0.0001389,2]
[425820945,1781937040000,-500.0,0.00014999,2]
[425820939,1781937040000,-1839.86949021,0.00014844,2]
[425820947,1781937040000,-504.12362656,0.00014999,2]
[425820942,1781937040000,-793.37,0.00014899,2]
[425820946,1781937040000,-500.0,0.00014999,2]
[425820943,1781937040000,-793.37,0.00014899,2]
[425820941,1781937040000,-236.09215222,0.00014899,2]
[425820931,1781937040000,-861.99183634,0.00014682,2]
[425820936,1781937040000,-612.47830858,0.000148,2]
[425820938,1781937040000,-5202.35050979,0.00014844,2]
[425820937,1781937040000,-9999.99,0.000148,2]
[425820933,1781937040000,-694.9832,0.000148,2]
[425820935,1781937040000,-618.73257491,0.000148,2]
[425820932,1781937040000,-669.9814784,0.00014682,2]
[425820944,1781937040000,-8420.06808941,0.00014922,2]
[425820940,1781937040000,-1651.003,0.00014899,2]
[425820948,1781937040000,-793.37,0.00014999,2]
[425820934,1781937040000,-768.78911651,0.000148,2]
[425820951,1781937040000,-193.0,0.00015172,2]
[425820950,1781937040000,-255.0,0.00015014,2]
[425820964,1781937040000,-170.12940884,0.0001579,2]
[425820965,1781937040000,-160.02071421,0.0001579,2]
[425820961,1781937040000,-150.0,0.0001579,2]
[425820963,1781937040000,-150.0,0.0001579,2]
[425820962,1781937040000,-150.0,0.0001579,2]
[425820959,1781937040000,-812.22115634,0.00015638,2]
[425820960,1781937040000,-156.72,0.00015708,2]
[425820966,1781937040000,-500.0,0.00016064,2]
[425820957,1781937040000,-250.0,0.00015279,2]
[425820956,1781937040000,-209.34238986,0.00015279,2]
[425820955,1781937040000,-300.0,0.00015172,2]
[425820953,1781937040000,-300.18476206,0.00015172,2]
[425820954,1781937040000,-500.0,0.00015172,2]
[425820958,1781937040000,-300.0,0.00015281,2]
[425820952,1781937040000,-250.0,0.00015172,2]
[425820949,1781937040000,-793.37,0.00014999,2]
[425821008,1781937041000,-178.2,0.00017252,2]
[425821004,1781937041000,-166.66,0.00017052,2]
[425821005,1781937041000,-1555.5,0.00017062,2]
[425821006,1781937041000,-793.37,0.00017218,2]
[425821001,1781937041000,-1527.66,0.00016875,2]
[425821002,1781937041000,-500.0,0.00016891,2]
[425821007,1781937041000,-166.66,0.00017236,2]
[425821000,1781937041000,-166.66,0.00016702,2]
[425820998,1781937041000,-946.62405218,0.00016568,2]
[425820997,1781937041000,-1500.0,0.00016514,2]
[425821003,1781937041000,-900.89652149,0.00016983,2]
[425821010,1781937041000,-736.0,0.00017542,2]
[425821014,1781937041000,-1123.52,0.000179,2]
[425821012,1781937041000,-166.66,0.00017755,2]
[425821011,1781937041000,-1613.0535,0.0001761,2]
[425821013,1781937041000,-166.66,0.0001777,2]
[425821017,1781937041000,-1672.7364795,0.00018158,2]
[425821016,1781937041000,-166.66,0.00018106,2]
[425821015,1781937041000,-216.43,0.00017977,2]
[425820999,1781937041000,-166.66,0.000167,2]
[425821018,1781937041000,-166.66,0.00018304,2]
[425821020,1781937041000,-793.37,0.00018355,2]
[425821022,1781937041000,-315.8,0.0001841,2]
[425821021,1781937041000,-694.29363139,0.000184,2]
[425821019,1781937041000,-250.0,0.00018353,2]
[425821025,1781937041000,-444.31,0.00018584,2]
[425821009,1781937041000,-166.66,0.00017403,2]
[425820995,1781937041000,-315.8,0.00016438,2]
[425820989,1781937041000,-500.0,0.00016437,2]
[425820994,1781937041000,-500.0,0.00016437,2]
[425821028,1781937041000,-1554.78,0.0001887,2]
[425820969,1781937041000,-202.6298933,0.00016064,2]
[425820970,1781937041000,-500.0,0.00016064,2]
[425820967,1781937041000,-500.0,0.00016064,2]
[425820968,1781937041000,-500.0,0.00016064,2]
[425820972,1781937041000,-500.0,0.00016064,2]
[425820971,1781937041000,-500.0,0.00016064,2]
[425820973,1781937041000,-500.0,0.00016064,2]
[425820974,1781937041000,-500.0,0.00016064,2]
[425820975,1781937041000,-552.67835172,0.00016064,2]
[425820977,1781937041000,-150.0,0.00016064,2]
[425820976,1781937041000,-150.0,0.00016064,2]
[425820980,1781937041000,-187.39369035,0.00016064,2]
[425820982,1781937041000,-433.0,0.00016236,2]
[425820978,1781937041000,-167.75704659,0.00016064,2]
[425820979,1781937041000,-150.0,0.00016064,2]
[425820981,1781937041000,-166.66,0.00016169,2]
[425820984,1781937041000,-500.0,0.00016437,2]
[425820983,1781937041000,-2500.0,0.00016338,2]
[425820986,1781937041000,-500.54648687,0.00016437,2]
[425820985,1781937041000,-512.48580756,0.00016437,2]
[425820987,1781937041000,-500.0,0.00016437,2]
[425820991,1781937041000,-1000.0,0.00016437,2]
[425820988,1781937041000,-500.0,0.00016437,2]
[425820990,1781937041000,-500.0,0.00016437,2]
[425820992,1781937041000,-213.8453188,0.00016437,2]
[425820993,1781937041000,-500.0,0.00016437,2]
[425820996,1781937041000,-270.0,0.00016438,2]
[425821027,1781937041000,-166.66,0.00018837,2]
[425821034,1781937041000,-268.26853582,0.00019178,2]
[425821024,1781937041000,-166.66,0.00018458,2]
[425821061,1781937041000,-275.0,0.0002,2]
[425821063,1781937041000,-500.0,0.00020244,2]
[425821062,1781937041000,-421.0,0.00020136,2]
[425821065,1781937041000,-1934.38338736,0.0002035,2]
[425821060,1781937041000,-190.63801148,0.0002,2]
[425821067,1781937041000,-3625.99457345,0.00020477,2]
[425821064,1781937041000,-1554.78,0.00020285,2]
[425821066,1781937041000,-315.8,0.00020381,2]
[425821069,1781937041000,-1554.78,0.00020757,2]
[425821070,1781937041000,-421.0,0.00020821,2]
[425821071,1781937041000,-2005.9555727,0.00020898,2]
[425821068,1781937041000,-669.89000139,0.00020661,2]
[425821057,1781937041000,-401.0,0.0002,2]
[425821073,1781937041000,-189.0,0.00021,2]
[425821079,1781937041000,-401.0,0.00021,2]
[425821072,1781937041000,-417.0,0.00021,2]
[425821076,1781937041000,-939.0,0.00021,2]
[425821074,1781937041000,-151.0,0.00021,2]
[425821075,1781937041000,-400.0,0.00021,2]
[425821077,1781937041000,-167.0,0.00021,2]
[425821023,1781937041000,-465.76,0.00018452,2]
[425821080,1781937041000,-185.0,0.00021,2]
[425821083,1781937041000,-2665.13634009,0.00021271,7]
[425821082,1781937041000,-793.37,0.00021244,2]
[425821085,1781937041000,-151.0,0.00021446,2]
[425821084,1781937041000,-7033.33696806,0.00021271,7]
[425821078,1781937041000,-155.0,0.00021,2]
[425821058,1781937041000,-185.0,0.0002,2]
[425821081,1781937041000,-275.0,0.00021,2]
[425821056,1781937041000,-155.0,0.0002,2]
[425821059,1781937041000,-190.63801148,0.0002,2]
[425821029,1781937041000,-637.0,0.00018972,2]
[425821026,1781937041000,-1734.62772924,0.00018706,2]
[425821033,1781937041000,-250.0,0.00019178,2]
[425821030,1781937041000,-159.4,0.00019077,2]
[425821032,1781937041000,-250.0,0.00019178,2]
[425821035,1781937041000,-1798.80895522,0.00019254,2]
[425821036,1781937041000,-3625.9945735,0.00019299,2]
[425821037,1781937041000,-1554.78,0.00019341,2]
[425821039,1781937041000,-500.0,0.00019399,2]
[425821040,1781937041000,-793.37,0.00019399,2]
[425821038,1781937041000,-500.0,0.00019399,2]
[425821041,1781937041000,-421.0,0.00019452,2]
[425821031,1781937041000,-250.0,0.00019178,2]
[425821044,1781937041000,-465.76,0.00019822,2]
[425821042,1781937041000,-1865.36488656,0.00019802,2]
[425821050,1781937041000,-189.0,0.0002,2]
[425821053,1781937041000,-939.0,0.0002,2]
[425821049,1781937041000,-649.3743888,0.0002,2]
[425821048,1781937041000,-500.0,0.0002,2]
[425821052,1781937041000,-400.0,0.0002,2]
[425821055,1781937041000,-10000.0,0.0002,2]
[425821054,1781937041000,-167.0,0.0002,2]
[425821047,1781937041000,-417.0,0.0002,2]
[425821043,1781937041000,-1554.78,0.00019813,2]
[425821045,1781937041000,-793.37,0.00019955,2]
[425821046,1781937041000,-793.37,0.00019999,2]
[425821051,1781937041000,-151.0,0.0002,2]
[425821111,1781937042000,-18561.08753698,0.00021771,7]
[425821110,1781937042000,-12407.64009973,0.00021771,7]
[425821114,1781937042000,-5000.0,0.00021918,2]
[425821115,1781937042000,-169.59,0.00021918,2]
[425821113,1781937042000,-300.098677,0.00021889,7]
[425821112,1781937042000,-25113.8052,0.00021771,7]
[425821116,1781937042000,-150.0,0.00021918,2]
[425821117,1781937042000,-150.0,0.00021918,2]
[425821118,1781937042000,-150.0,0.00021918,2]
[425821120,1781937042000,-150.0,0.00021918,2]
[425821123,1781937042000,-150.0,0.00021918,2]
[425821119,1781937042000,-150.0,0.00021918,2]
[425821121,1781937042000,-150.0,0.00021918,2]
[425821124,1781937042000,-150.0,0.00021918,2]
[425821125,1781937042000,-150.0,0.00021918,2]
[425821126,1781937042000,-150.0,0.00021918,2]
[425821127,1781937042000,-150.0,0.00021918,2]
[425821128,1781937042000,-150.0,0.00021918,2]
[425821129,1781937042000,-150.0,0.00021918,2]
[425821108,1781937042000,-208.35353725,0.00021517,10]
[425821122,1781937042000,-150.0,0.00021918,2]
[425821109,1781937042000,-3625.99457345,0.00021655,2]
[425821092,1781937042000,-151.0,0.00021446,2]
[425821104,1781937042000,-151.0,0.00021446,2]
[425821131,1781937042000,-150.0,0.00021918,2]
[425821086,1781937042000,-151.0,0.00021446,2]
[425821087,1781937042000,-151.0,0.00021446,2]
[425821088,1781937042000,-151.0,0.00021446,2]
[425821091,1781937042000,-151.0,0.00021446,2]
[425821089,1781937042000,-151.0,0.00021446,2]
[425821090,1781937042000,-151.0,0.00021446,2]
[425821093,1781937042000,-151.0,0.00021446,2]
[425821094,1781937042000,-151.0,0.00021446,2]
[425821106,1781937042000,-159.4,0.00021462,2]
[425821095,1781937042000,-2080.17592889,0.00021446,2]
[425821096,1781937042000,-151.0,0.00021446,2]
[425821098,1781937042000,-151.0,0.00021446,2]
[425821099,1781937042000,-151.0,0.00021446,2]
[425821102,1781937042000,-151.0,0.00021446,2]
[425821101,1781937042000,-151.0,0.00021446,2]
[425821100,1781937042000,-151.0,0.00021446,2]
[425821103,1781937042000,-151.0,0.00021446,2]
[425821105,1781937042000,-151.0,0.00021446,2]
[425821107,1781937042000,-421.0,0.00021506,2]
[425821097,1781937042000,-151.0,0.00021446,2]
[425821133,1781937042000,-150.0,0.00021918,2]
[425821132,1781937042000,-150.0,0.00021918,2]
[425821136,1781937042000,-203.91261035,0.00021918,2]
[425821160,1781937042000,-417.0,0.00023,2]
[425821159,1781937042000,-3625.99457345,0.00022833,2]
[425821161,1781937042000,-857.0,0.00023,2]
[425821162,1781937042000,-189.0,0.00023,2]
[425821163,1781937042000,-151.0,0.00023,2]
[425821165,1781937042000,-939.0,0.00023,2]
[425821164,1781937042000,-400.0,0.00023,2]
[425821166,1781937042000,-167.0,0.00023,2]
[425821167,1781937042000,-155.0,0.00023,2]
[425821157,1781937042000,-2236.95670847,0.00022542,2]
[425821168,1781937042000,-401.0,0.00023,2]
[425821173,1781937042000,-2319.72410669,0.0002309,2]
[425821172,1781937042000,-275.0,0.00023,2]
[425821174,1781937042000,-3058.76632862,0.00023242,2]
[425821176,1781937042000,-193.41514567,0.00023418,2]
[425821178,1781937042000,-1527.66,0.00023625,2]
[425821177,1781937042000,-331.23726005,0.00023418,2]
[425821179,1781937042000,-2405.55389863,0.00023638,2]
[425821180,1781937042000,-159.4,0.00023847,2]
[425821181,1781937042000,-1950.0,0.0002389,2]
[425821170,1781937042000,-185.0,0.00023,2]
[425821158,1781937042000,-259.909435,0.00022555,7]
[425821175,1781937042000,-355.76,0.00023342,2]
[425821155,1781937042000,-265.46,0.00022466,2]
[425821156,1781937042000,-336.99,0.00022466,2]
[425821130,1781937042000,-150.0,0.00021918,2]
[425821135,1781937042000,-150.0,0.00021918,2]
[425821134,1781937042000,-150.0,0.00021918,2]
[425821138,1781937042000,-500.0,0.00021999,2]
[425821140,1781937042000,-793.37,0.00021999,2]
[425821139,1781937042000,-793.37,0.00021999,2]
[425821142,1781937042000,-1765.08263732,0.00022,2]
[425821144,1781937042000,-151.0,0.00022,2]
[425821147,1781937042000,-167.0,0.00022,2]
[425821137,1781937042000,-2157.14243826,0.00021994,2]